fUSD/lending_fUSD_20240217
["ID","MTS","AMOUNT","RATE_DAILY","PERIOD"]
[314293030,1708161032856,-156.94607223,0.00027475,2]
[314293031,1708161032866,-24510.01,0.00027512,2]
[314293032,1708161032876,-5643.95,0.00027578,2]
[314293033,1708161032885,-2108.24602027,0.00027671,2]
[314293034,1708161032916,-22401.76397973,0.00027671,2]
[314293035,1708161032926,-1264.36,0.00027809,2]
[314293036,1708161032936,-24510.01,0.0002783,2]
[314293037,1708161032947,-156.94607223,0.0002788,2]
[314293038,1708161032957,-156.15075557,0.0002788,2]
[314293039,1708161032966,-203.69641606,0.0002788,2]
[314293040,1708161032976,-212.57181301,0.0002788,3]
[314293041,1708161032986,-165.13660826,0.0002788,2]
[314293042,1708161032996,-510.01723771,0.0002788,2]
[314293043,1708161033011,-190.49413631,0.0002788,2]
[314293044,1708161033020,-255.39159017,0.0002788,2]
[314293045,1708161033030,-162.69548291,0.0002788,2]
[314293046,1708161033040,-156.69,0.00027885,2]
[314293047,1708161033050,-222.38402291,0.0002797,2]
[314293048,1708161033060,-222.38402291,0.0002797,2]
[314293049,1708161033070,-222.38402291,0.0002797,2]
[314293050,1708161033080,-189.69805008,0.00027978,2]
[314293051,1708161033091,-204.23833728,0.00027978,2]
[314293052,1708161033101,-500.0,0.00027979,2]
[314293053,1708161033111,-580.25039661,0.00027979,2]
[314293054,1708161033121,-500.0,0.00027979,2]
[314293055,1708161033131,-500.0,0.00027979,2]
[314293056,1708161033141,-500.0,0.00027979,2]
[314293057,1708161033151,-510.84944947,0.00027979,2]
[314293058,1708161033161,-500.0,0.00027979,2]
[314293059,1708161033171,-500.0,0.00027979,2]
[314293060,1708161033181,-500.0,0.00027979,2]
[314293061,1708161033191,-500.0,0.00027979,2]
[314293062,1708161033200,-500.0,0.00027979,2]
[314293063,1708161033210,-500.0,0.00027979,2]
[314293064,1708161033219,-500.0,0.00027979,2]
[314293065,1708161033228,-500.0,0.00027979,2]
[314293066,1708161033238,-199.67393265,0.0002798,3]
[314293067,1708161033248,-935839.65404515,0.0002798,2]
[314293073,1708161038016,-1526.09777654,0.00026269,2]
[314293074,1708161038098,-40.69222346,0.00026269,2]
[314293075,1708161038109,-31127.40726113,0.0002798,2]
[314293076,1708161038126,-8355.461751,0.0002798,2]
[314293077,1708161038142,-36816.033428,0.0002798,2]
[314293078,1708161038165,-709.85997169,0.0002798,2]
[314293079,1708161038179,-2455.7,0.0002798,2]
[314293080,1708161038192,-445.94319877,0.0002798,2]
[314293081,1708161038206,-768.70427745,0.0002798,2]
[314293082,1708161038355,-997.53207337,0.0002798,2]
[314293083,1708161038369,-2320.54547166,0.0002798,2]
[314293084,1708161038383,-1000.73762323,0.0002798,2]
[314293085,1708161038397,-1991.0437793,0.0002798,2]
[314293086,1708161038411,-2130334.45320125,0.0002798,2]
[314293089,1708161038422,-10293.696,0.0002798,2]
[314293091,1708161038434,-24510.01,0.00027989,2]
[314293093,1708161038447,-61373.81967717,0.00028,2]
[314293095,1708161038459,-166.73,0.0002802,2]
[314293098,1708161038471,-2981.61,0.00028032,2]
[314293100,1708161038483,-177.43,0.00028096,2]
[314293102,1708161038495,-24510.01,0.00028148,2]
[314293104,1708161038504,-420.0,0.00028219,2]
[314293106,1708161038514,-24510.01,0.00028307,2]
[314293108,1708161038522,-200.0,0.00028424,2]
[314293110,1708161038532,-24510.01,0.00028466,2]
[314293112,1708161038541,-1566.79,0.00028533,2]
[314293114,1708161038550,-24510.01,0.00028625,2]
[314293116,1708161038559,-177.43,0.00028644,2]
[314293118,1708161038569,-210.0,0.00028685,2]
[314293120,1708161038578,-24510.01,0.00028784,2]
[314293122,1708161038587,-7777.34,0.00028814,2]
[314293124,1708161038596,-275.87697227,0.00028855,2]
[314293150,1708161038814,-200.28543471,0.00028855,2]
[314293153,1708161038833,-24510.01,0.00028943,2]
[314293155,1708161038842,-1000.0,0.00028952,2]
[314293157,1708161038851,-300.0,0.00028969,2]
[314293159,1708161038861,-650.0,0.00029,3]
[314293161,1708161038870,-177.43,0.00029192,2]
[314293163,1708161038883,-499.99,0.000292,2]
[314293165,1708161038891,-714.83,0.000292,2]
[314293167,1708161038901,-5643.95,0.00029222,2]
[314293169,1708161038909,-212.571813,0.00029311,4]
[314293171,1708161038920,-169.4451165,0.000295,3]
[314293173,1708161038929,-165.1366082,0.0002955,2]
[314293175,1708161038938,-150.99,0.000296,2]
[314293177,1708161038947,-156.69,0.00029628,2]
[314293179,1708161038958,-174.30848888,0.000297,2]
[314293180,1708161038967,-177.43,0.0002974,2]
[314293181,1708161038975,-219.63,0.00029911,2]
[314293182,1708161038984,-4481.09295103,0.0003,2]
[314293183,1708161038993,-1861.66346308,0.0003,4]
[314293184,1708161039002,-1177.58646698,0.0003,4]
[314293185,1708161039013,-456266.95772415,0.0003,2]
[314293186,1708161039022,-153.0,0.0003,2]
[314293187,1708161039031,-156.4,0.00030137,2]
[314293189,1708161039040,-177.43,0.00030288,2]
[314293190,1708161039050,-300.0,0.00030339,2]
[314293192,1708161039059,-587.0,0.00030537,2]
[314293194,1708161039068,-212.571813,0.00030743,5]
[314293196,1708161039077,-1566.79,0.00030797,2]
[314293198,1708161039086,-177.43,0.00030836,2]
[314293200,1708161039096,-5643.95,0.00030866,2]
[314293202,1708161039105,-156.4,0.0003092,2]
[314293204,1708161039113,-219.63,0.00030969,2]
[314293206,1708161039122,-700.0,0.00031,3]
[314293208,1708161039132,-165.1366082,0.0003122,2]
[314293210,1708161039141,-156.69,0.00031371,2]
[314293212,1708161039150,-177.43,0.00031384,2]
[314293214,1708161039159,-293.0,0.00031553,2]
[314293215,1708161039168,-169.31,0.00031644,2]
[314293217,1708161039177,-156.4,0.00031703,2]
[314293219,1708161039187,-164149.450416,0.000318,3]
[314293221,1708161039196,-177.43,0.00031932,2]
[314293223,1708161039205,-219.63,0.00032027,2]
[314293225,1708161039215,-1000.0,0.00032169,2]
[314293227,1708161039224,-212.571813,0.00032174,5]
[314293229,1708161039233,-152.58,0.00032241,2]
[314293231,1708161039242,-177.43,0.0003248,2]
[314293233,1708161039251,-156.4,0.00032485,2]
[314293235,1708161039262,-5643.95,0.00032509,2]
[314293237,1708161039270,-190.4941363,0.00032777,2]
[314293239,1708161039280,-23233.57203364,0.00032874,2]
[314293241,1708161039289,-45172.0,0.00032877,4]
[314293243,1708161039297,-37326.86,0.00032877,2]
[314293245,1708161039307,-203.69641604,0.0003289,2]
[314293247,1708161039316,-165.1366082,0.0003289,4]
[314293249,1708161039325,-255.39159017,0.0003289,2]
[314293251,1708161039334,-162.6954829,0.0003289,2]
[314293253,1708161039342,-8000.0,0.000329,2]
[314293255,1708161039352,-750.0,0.00033,3]
[314293257,1708161039361,-200.2,0.00033,2]
[314293259,1708161039369,-346.73926615,0.00033028,2]
[314293261,1708161039379,-1566.79,0.0003306,2]
[314293263,1708161039388,-219.63,0.00033085,2]
[314293265,1708161039396,-156.69,0.00033114,2]
[314293268,1708161039406,-800.0,0.00033151,2]
[314293270,1708161039417,-156.4,0.00033268,2]
[314293272,1708161039425,-6733.29,0.00033398,2]
[314293274,1708161039434,-212.571813,0.00033606,6]
[314293276,1708161039445,-156.4,0.00034051,2]
[314293278,1708161039454,-150.0,0.000341,2]
[314293280,1708161039464,-500.0,0.000341,2]
[314293282,1708161039473,-219.63,0.00034143,2]
[314293284,1708161039482,-5643.95,0.00034153,2]
[314293286,1708161039490,-4573.0,0.000342,2]
[314293288,1708161039500,-155.0,0.00034342,2]
[314293290,1708161039510,-1000.0,0.00034463,2]
[314293292,1708161039519,-4471.644791,0.0003452,2]
[314293294,1708161039527,-10872.000644,0.0003452,2]
[314293296,1708161039536,-2445.535345,0.0003452,2]
[314293298,1708161039545,-866.066933,0.0003452,2]
[314293300,1708161039554,-1936.117803,0.0003452,2]
[314293302,1708161039563,-3991.71,0.00034521,2]
[314293304,1708161039572,-165.1366082,0.0003456,7]
[314293306,1708161039581,-150.0,0.00034648,2]
[314293308,1708161039591,-411.0,0.00034709,2]
[314293310,1708161039599,-6707.467187,0.00034794,2]
[314293312,1708161039608,-16308.000966,0.00034794,2]
[314293314,1708161039617,-3668.303018,0.00034794,2]
[314293316,1708161039627,-1299.1004,0.00034794,2]
[314293318,1708161039635,-2904.176705,0.00034794,2]
[314293320,1708161039644,-153.62677809,0.000348,2]
[314293322,1708161039653,-156.4,0.00034834,2]
[314293324,1708161039663,-156.69,0.00034857,2]
[314293326,1708161039672,-3504.26739857,0.000349,2]
[314293328,1708161039682,-3504.26739857,0.000349,2]
[314293330,1708161039691,-3504.26739857,0.000349,2]
[314293332,1708161039700,-8943.289583,0.00034931,2]
[314293334,1708161039709,-21744.001288,0.00034931,2]
[314293336,1708161039718,-4891.070691,0.00034931,2]
[314293338,1708161039727,-1732.133867,0.00034931,2]
[314293340,1708161039736,-3872.235607,0.00034931,2]
[314293342,1708161039745,-152.06641792,0.00034968,7]
[314293344,1708161039754,-38661.45884693,0.00035,4]
[314293346,1708161039764,-4600.38653042,0.00035,4]
[314293348,1708161039772,-230.08544777,0.00035,7]
[314293350,1708161039781,-800.0,0.00035,3]
[314293352,1708161039790,-420.37567499,0.00035,2]
[314293354,1708161039799,-484.08793418,0.00035,2]
[314293356,1708161039807,-18211.22257101,0.00035,2]
[314293358,1708161039816,-212.571813,0.00035037,7]
[314293360,1708161039825,-1619.247468,0.00035068,2]
[314293362,1708161039834,-3238.494938,0.00035068,2]
[314293364,1708161039843,-15188.803311,0.00035068,2]
[314293366,1708161039852,-1686.5761,0.00035068,2]
[314293368,1708161039862,-1465.874321,0.00035068,2]
[314293370,1708161039874,-11179.111979,0.00035068,2]
[314293372,1708161039883,-27180.00161,0.00035068,2]
[314293374,1708161039892,-6113.838364,0.00035068,2]
[314293376,1708161039901,-2165.167334,0.00035068,2]
[314293378,1708161039910,-4840.294508,0.00035068,2]
[314293380,1708161039919,-63203.44778986,0.0003509,2]
[314293382,1708161039929,-800.0,0.00035096,2]
[314293384,1708161039938,-13940.0,0.000351,2]
[314293386,1708161039948,-2583.0,0.000351,2]
[314293388,1708161039957,-150.0,0.00035196,2]
[314293390,1708161039966,-219.63,0.00035201,2]
[314293392,1708161039975,-1566.79,0.00035324,2]
[314293394,1708161039984,-205.0,0.00035342,2]
[314293396,1708161039993,-2266.946455,0.00035342,2]
[314293398,1708161040002,-4533.892913,0.00035342,2]
[314293400,1708161040012,-21264.324636,0.00035342,2]
[314293402,1708161040021,-2361.20654,0.00035342,2]
[314293404,1708161040029,-2052.224049,0.00035342,2]
[314293405,1708161040039,-15650.756771,0.00035342,2]
[314293408,1708161040048,-38052.002254,0.00035342,2]
[314293410,1708161040058,-8559.37371,0.00035342,2]
[314293412,1708161040067,-3031.234268,0.00035342,2]
[314293414,1708161040076,-6776.412312,0.00035342,2]
[314293415,1708161040086,-1000.0,0.00035386,2]
[314293417,1708161040095,-3504.26739857,0.00035416,2]
[314293419,1708161040105,-4573.32742096,0.000356,2]
[314293421,1708161040114,-500.0,0.00035616,2]
[314293424,1708161040123,-500.0,0.00035616,2]
[314293426,1708161040133,-500.0,0.00035616,2]
[314293427,1708161040142,-500.0,0.00035616,2]
[314293429,1708161040151,-500.0,0.00035616,2]
[314293432,1708161040160,-500.0,0.00035616,2]
[314293434,1708161040169,-500.0,0.00035616,2]
[314293436,1708161040179,-500.0,0.00035616,2]
[314293438,1708161040188,-500.0,0.00035616,2]
[314293440,1708161040197,-500.0,0.00035616,2]
[314293442,1708161040207,-500.0,0.00035616,2]
[314293444,1708161040216,-500.0,0.00035616,2]
[314293445,1708161040225,-500.0,0.00035616,2]
[314293447,1708161040234,-500.0,0.00035616,2]
[314293449,1708161040243,-500.0,0.00035616,2]
[314293451,1708161040252,-500.0,0.00035616,2]
[314293453,1708161040261,-500.0,0.00035616,2]
[314293455,1708161040270,-500.0,0.00035616,2]
[314293457,1708161040279,-500.0,0.00035616,2]
[314293459,1708161040289,-500.0,0.00035616,2]
[314293461,1708161040298,-156.4,0.00035616,2]
[314293463,1708161040307,-1500.0,0.00035616,10]
[314293465,1708161040316,-155.0,0.00035712,2]
[314293467,1708161040325,-150.0,0.00035744,2]
[314293469,1708161040334,-153.62677801,0.00035789,2]
[314293471,1708161040343,-3991.71,0.00035798,2]
[314293473,1708161040352,-2551.43713194,0.00035816,2]
[314293475,1708161040361,-2698.52176,0.00036,2]
[314293477,1708161040370,-9782.141383,0.00036,2]
[314293479,1708161040379,-166.45,0.00036128,2]
[314293481,1708161040388,-165.1366082,0.0003623,9]
[314293483,1708161040397,-219.63,0.00036258,2]
[314293485,1708161040406,-5755.15,0.00036277,2]
[314293487,1708161040415,-150.0,0.00036292,2]
[314293489,1708161040424,-36206.40392223,0.00036389,2]
[314293491,1708161040434,-36206.40392218,0.00036389,2]
[314293493,1708161040444,-36206.40392218,0.00036389,2]
[314293495,1708161040454,-36206.40392218,0.00036389,2]
[314293498,1708161040463,-36206.40392218,0.00036389,2]
[314293500,1708161040472,-36206.40392218,0.00036389,2]
[314293502,1708161040481,-36206.40392218,0.00036389,2]
[314293504,1708161040490,-36206.40392218,0.00036389,2]
[314293506,1708161040499,-156.4,0.00036399,2]
[314293508,1708161040508,-212.571813,0.00036469,8]
[314293510,1708161040517,-40346.90677439,0.000365,7]
[314293512,1708161040526,-156.69,0.00036599,2]
[314293514,1708161040535,-153.62677801,0.00036777,2]
[314293516,1708161040544,-15381.90433741,0.00036798,2]
[314293518,1708161040553,-15381.90433741,0.00036798,2]
[314293520,1708161040562,-15381.90433741,0.00036798,2]
[314293522,1708161040571,-15381.90433741,0.00036798,2]
[314293524,1708161040580,-15381.90433741,0.00036798,2]
[314293526,1708161040589,-15381.90433741,0.00036798,2]
[314293528,1708161040598,-15381.90433741,0.00036798,2]
[314293529,1708161040607,-150.0,0.0003684,2]
[314293530,1708161040616,-152.06641792,0.00036887,9]
[314293531,1708161040625,-150.0,0.00036986,2]
[314293532,1708161040636,-300.0,0.00036986,7]
[314293533,1708161040645,-450.0,0.00036986,12]
[314293534,1708161040654,-316.64550976,0.00036986,17]
[314293535,1708161040663,-3504.26739857,0.00036995,2]
[314293537,1708161040672,-850.0,0.00037,3]
[314293539,1708161040681,-3991.71,0.00037075,2]
[314293541,1708161040690,-155.0,0.00037082,2]
[314293543,1708161040700,-156.4,0.00037182,2]
[314293545,1708161040709,-1000.0,0.000373,2]
[314293547,1708161040718,-166.45,0.0003732,2]
[314293549,1708161040727,-150.0,0.00037388,2]
[314293551,1708161040736,-178927.78297634,0.000374,5]
[314293553,1708161040745,-759.75542771,0.000375,5]
[314293556,1708161040754,-23233.57203364,0.00037528,2]
[314293558,1708161040764,-36206.40392218,0.00037531,2]
[314293560,1708161040773,-15381.90433741,0.00037576,2]
[314293562,1708161040782,-1566.79,0.00037588,2]
[314293563,1708161040791,-180.0,0.00037671,2]
[314293566,1708161040800,-156.89541827,0.000377,3]
[314293568,1708161040809,-153.62677801,0.00037766,2]
[314293570,1708161040819,-162.8658829,0.000378,2]
[314293571,1708161040828,-284863.24066563,0.000378,2]
[314293574,1708161040837,-68192.0,0.00037863,4]
[314293575,1708161040845,-200.0,0.0003787,7]
[314293577,1708161040854,-200.0,0.0003787,7]
[314293579,1708161040865,-209.18429795,0.0003787,7]
[314293582,1708161040876,-254.45312673,0.00037876,2]
[314293583,1708161040885,-214.72550425,0.00037876,2]
[314293585,1708161040894,-162635.00423548,0.00037877,2]
[314293587,1708161040904,-254.45312673,0.00037879,2]
[314293589,1708161040915,-214.72550425,0.00037879,2]
[314293591,1708161040923,-254.45312673,0.00037879,2]
[314293593,1708161040932,-214.72550425,0.00037879,2]
[314293596,1708161040942,-2378752.25126549,0.0003788,2]
[314293597,1708161040952,-18211.22257101,0.0003788,2]
[314293599,1708161040961,-254.45312673,0.00037899,2]
[314293601,1708161040971,-214.72550425,0.00037899,2]
[314293604,1708161040980,-250.0,0.000379,2]
[314293605,1708161040989,-673542.713143,0.000379,3]
[314293607,1708161040998,-156.15075556,0.000379,2]
[314293609,1708161041007,-203.69641604,0.000379,2]
[314293611,1708161041017,-255.39159017,0.000379,2]
[314293614,1708161041026,-165.1366082,0.000379,11]
[314293615,1708161041035,-212.571813,0.000379,8]
[314293617,1708161041044,-178.83894219,0.00037936,2]
[314293619,1708161041054,-156.4,0.00037965,2]
[314293621,1708161041063,-254.45312673,0.00037999,2]
[314293623,1708161041071,-214.72550425,0.00037999,2]
[314293625,1708161041080,-254.45312673,0.00037999,2]
[314293627,1708161041089,-214.72550425,0.00037999,2]
[314293629,1708161041098,-935.85066898,0.00038,2]
[314293631,1708161041108,-89669.25653396,0.00038,2]
[314293633,1708161041117,-1903763.95679652,0.00038,2]
[314293635,1708161041126,-215.98921406,0.00038,4]
[314293637,1708161041135,-250.0,0.00038174,2]
[314293639,1708161041145,-341.0,0.0003818,2]
[314293641,1708161041154,-156.69,0.00038342,2]
[314293643,1708161041163,-3991.71,0.00038352,2]
[314293645,1708161041173,-592.97,0.00038356,15]
[314293647,1708161041182,-151.98,0.00038356,2]
[314293650,1708161041191,-201.59,0.00038356,2]
[314293652,1708161041200,-365.77012968,0.00038448,2]
[314293654,1708161041210,-155.0,0.00038452,2]
[314293656,1708161041219,-166.45,0.00038513,2]
[314293658,1708161041228,-3504.26739857,0.00038574,2]
[314293660,1708161041238,-235.46768901,0.000386,2]
[314293662,1708161041247,-1000.0,0.00038603,2]
[314293664,1708161041257,-156.88,0.000387,4]
[314293666,1708161041266,-156.4,0.00038747,2]
[314293668,1708161041275,-153.62677801,0.00038755,2]
[314293670,1708161041284,-17788.0,0.00038786,2]
[314293672,1708161041293,-15381.90433741,0.000388,2]
[314293674,1708161041301,-36206.40392218,0.000388,2]
[314293676,1708161041311,-726.00250677,0.00038805,10]
[314293678,1708161041319,-152.06641792,0.00038805,12]
[314293680,1708161041328,-254.45312673,0.00038899,2]
[314293682,1708161041338,-214.72550425,0.00038899,2]
[314293684,1708161041346,-214.72550425,0.00038899,2]
[314293686,1708161041355,-254.45312673,0.00038899,2]
[314293688,1708161041364,-214.72550425,0.00038899,2]
[314293690,1708161041373,-254.45312673,0.00038899,2]
[314293692,1708161041383,-214.72550425,0.00038899,2]
[314293694,1708161041393,-254.45312673,0.00038899,2]
[314293695,1708161041402,-4142774.8263272,0.000389,3]
[314293696,1708161041412,-420.37567499,0.000389,2]
[314293697,1708161041422,-484.08793418,0.000389,2]
[314293698,1708161041431,-18211.22257101,0.000389,2]
[314293699,1708161041440,-20000.0,0.00039,5]
[314293700,1708161041450,-900.0,0.00039,3]
[314293701,1708161041459,-163.87,0.00039025,2]
[314293702,1708161041469,-529.23,0.0003926,2]
[314293703,1708161041478,-156.4,0.0003953,2]
[314293704,1708161041487,-3991.71,0.0003963,2]
[314293705,1708161041496,-166.45,0.00039705,2]
[314293706,1708161041507,-153.62677801,0.00039743,5]
[314293707,1708161041517,-155.0,0.00039822,2]
[314293708,1708161041526,-1566.79,0.00039852,2]
[314293709,1708161041535,-214.72550425,0.00039879,2]
[314293710,1708161041544,-254.45312673,0.00039879,2]
[314293711,1708161041553,-214.72550425,0.00039879,2]
[314293712,1708161041562,-254.45312673,0.00039879,2]
[314293713,1708161041571,-2267291.8093732,0.0003988,2]
[314293714,1708161041580,-1270.47860103,0.00039891,2]
[314293715,1708161041589,-431.36195186,0.000399,10]
[314293716,1708161041599,-150.1,0.000399,2]
[314293717,1708161041608,-470.59100194,0.00039999,31]
[314293718,1708161041617,-473.13466279,0.0004,2]
[314293719,1708161041627,-3305.99403158,0.0004,4]
[314293720,1708161041637,-150.808351,0.0004,2]
[314293721,1708161041646,-156.69,0.00040085,2]
[314293722,1708161041655,-1106.54962965,0.00040124,2]
[314293723,1708161041665,-1000.0,0.00040138,2]
[314293724,1708161041674,-3504.26739857,0.00040153,5]
[314293725,1708161041684,-156.4,0.00040313,2]
[314293726,1708161041693,-177.0,0.000405,7]
[314293727,1708161041702,-25025.46895856,0.00040506,13]
[314293728,1708161041711,-1251.27344793,0.00040506,12]
[314293729,1708161041721,-113343.65870824,0.00040506,13]
[314293730,1708161041730,-6754.12663561,0.00040506,12]
[314293731,1708161041739,-566.92695887,0.00040526,11]
[314293732,1708161041748,-153.62677801,0.00040732,9]
[314293733,1708161041758,-529.23,0.00040733,2]
[314293734,1708161041767,-214.72550425,0.00040779,3]
[314293736,1708161041777,-254.45312673,0.00040779,3]
[314293737,1708161041786,-13573.05826683,0.0004078,120]
[314293738,1708161041795,-8788.42825391,0.0004078,120]
[314293739,1708161041804,-66019.60119702,0.0004078,2]
[314293740,1708161041813,-23017.94119475,0.0004078,32]
[314293741,1708161041822,-1103.54391099,0.0004078,3]
[314293742,1708161041832,-15931.47244674,0.0004078,2]
[314293743,1708161041842,-275.15622716,0.0004078,30]
[314293744,1708161041852,-216.5760994,0.0004078,30]
[314293745,1708161041984,-155.56468996,0.0004078,120]
[314293746,1708161041994,-303.48458053,0.0004078,100]
[314293747,1708161042005,-5358.94753529,0.0004078,2]
[314293748,1708161042015,-283.32387974,0.0004078,2]
[314293749,1708161042025,-468.77508963,0.0004078,2]
[314293750,1708161042035,-159.35404023,0.0004078,30]
[314293751,1708161042044,-155.39982316,0.0004078,2]
[314293752,1708161042053,-203.39521363,0.0004078,2]
[314293753,1708161042063,-17905.96232048,0.0004078,2]
[314293754,1708161042072,-32666.56886121,0.0004078,120]
[314293755,1708161042082,-201.59239623,0.0004078,120]
[314293756,1708161042092,-466.0482353,0.0004078,2]
[314293757,1708161042102,-656.47572142,0.0004078,2]
[314293758,1708161042111,-311.01975504,0.0004078,2]
[314293759,1708161042120,-3008.17816563,0.0004078,4]
[314293760,1708161042130,-5084.1689736,0.0004078,7]
[314293761,1708161042139,-5514.42836242,0.0004078,13]
[314293762,1708161042148,-2644.91665641,0.0004078,2]
[314293763,1708161042158,-6224.69585873,0.0004078,4]
[314293764,1708161042167,-156.29488104,0.0004078,2]
[314293765,1708161042176,-17186.66812909,0.0004078,2]
[314293766,1708161042185,-1410.87957634,0.0004078,2]
[314293767,1708161042194,-649.70326211,0.0004078,120]
[314293768,1708161042203,-169.71709592,0.0004078,120]
[314293769,1708161042213,-155.29370094,0.0004078,2]
[314293770,1708161042222,-20009.47953652,0.0004078,2]
[314293771,1708161042231,-306.59704943,0.0004078,120]
[314293772,1708161042240,-701.82634713,0.0004078,30]
[314293773,1708161042249,-151.34673705,0.0004078,30]
[314293774,1708161042258,-158.00946671,0.0004078,60]
[314293775,1708161042267,-437.6563897,0.0004078,14]
[314293776,1708161042276,-199.26055783,0.0004078,30]
[314293777,1708161042285,-5630.66900529,0.0004078,2]
[314293778,1708161042294,-1137.37989133,0.0004078,2]
[314293779,1708161042304,-151.0,0.0004078,30]
[314293780,1708161042313,-150.0,0.0004078,30]
[314293781,1708161042322,-348.1990438,0.0004078,2]
[314293782,1708161042332,-8607.0,0.0004078,7]
[314293783,1708161042342,-472.09255615,0.0004078,30]
[314293784,1708161042354,-170.32,0.00040784,10]
[314293785,1708161042363,-166.45,0.00040898,2]
[314293786,1708161042373,-950.0,0.00041,3]
[314293787,1708161042382,-177.0,0.00041048,7]
[314293788,1708161042394,-2504.26815191,0.00041095,2]
[314293789,1708161042404,-506.29499783,0.00041095,2]
[314293790,1708161042413,-156.4,0.00041096,2]
[314293791,1708161042422,-155.0,0.00041192,2]
[314293792,1708161042432,-634.83563452,0.00041428,2]
[314293793,1708161042442,-151.98,0.00041553,2]
[314293794,1708161042452,-177.0,0.00041596,7]
[314293795,1708161042462,-153.62677801,0.00041721,13]
[314293796,1708161042471,-3504.26739857,0.00041732,5]
[314293797,1708161042480,-201.59,0.00041781,2]
[314293798,1708161042491,-154.89,0.000418,4]
[314293799,1708161042500,-153.51,0.000418,4]
[314293800,1708161042514,-153.51,0.000418,4]
[314293801,1708161042524,-153.51,0.000418,4]
[314293802,1708161042534,-153.51,0.000418,4]
[314293803,1708161042544,-153.51,0.000418,4]
[314293804,1708161042553,-153.51,0.000418,4]
[314293805,1708161042563,-153.51,0.000418,4]
[314293806,1708161042573,-153.51,0.000418,4]
[314293807,1708161042582,-153.51,0.000418,4]
[314293808,1708161042591,-153.51,0.000418,4]
[314293809,1708161042600,-153.51,0.000418,4]
[314293810,1708161042610,-153.51,0.000418,4]
[314293811,1708161042619,-153.51,0.000418,4]
[314293812,1708161042628,-153.51,0.000418,4]
[314293813,1708161042637,-153.51,0.000418,4]
[314293814,1708161042646,-153.51,0.000418,4]
[314293815,1708161042656,-153.51,0.000418,4]
[314293816,1708161042669,-153.51,0.000418,4]
[314293817,1708161042679,-156.69,0.00041828,2]
[314293818,1708161042689,-173.51,0.0004199,120]
[314293819,1708161042699,-231.21,0.0004199,120]
[314293820,1708161042708,-316.03132048,0.00042,2]
[314293821,1708161042718,-8722.5118314,0.00042,2]
[314293822,1708161042727,-1231.24686331,0.00042,120]
[314293823,1708161042739,-78849.48082973,0.00042,4]
[314293824,1708161042750,-965.47916117,0.00042,7]
[314293825,1708161042759,-338.5789,0.00042,59]
[314293826,1708161042769,-200.64337833,0.00042,2]
[314293827,1708161042779,-1297.63261035,0.0004201,2]
[314293828,1708161042788,-166.45,0.00042091,2]
[314293829,1708161042797,-592.97,0.00042092,15]
[314293830,1708161042807,-1566.79,0.00042116,2]
[314293831,1708161042817,-166.05101382,0.00042135,30]
[314293832,1708161042826,-177.0,0.00042144,7]
[314293833,1708161042835,-529.23,0.00042205,2]
[314293834,1708161042845,-166.05101382,0.00042298,30]
[314293835,1708161042854,-166.05101382,0.00042442,30]
[314293836,1708161042863,-155.0,0.00042562,2]
[314293837,1708161042874,-177.0,0.00042692,7]
[314293839,1708161042886,-156.88,0.000427,9]
[314293840,1708161042895,-153.62677801,0.00042709,16]
[314293841,1708161042906,-158.23203844,0.00042748,30]
[314293842,1708161042917,-158.23203844,0.00042817,30]
[314293843,1708161042926,-264348.20538451,0.00042819,5]
[314293844,1708161042935,-3444.48866904,0.00042888,32]
[314293845,1708161042946,-1000.0,0.00042975,2]
[314293846,1708161042956,-330750.26468739,0.00042998,3]